[Event "44th Indian Team Championship 2025"]
[Site "Gujarat"]
[Date "2025.03.06"]
[Round "2.7"]
[White "Visakh N R"]
[Black "Ashutosh Mohapatra"]
[Result "1-0"]
[Annotator "TA"]
[ECO "E11"]
[WhiteElo "2514"]
[BlackElo "1845"]
[PlyCount "67"]
[EventDate "2025.03.03"]
[EventCountry "IND"]
[SourceTitle "playchess.com"]
[Source "ChessBase"]
[SourceQuality "1"]
[TimeControl "5400+30"]

{[%evp 15,67,8,7,10,13,6,26,21,27,18,16,14,10,-6,34,0,46,51,42,51,58,50,52,29,76,40,50,43,72,34,20,29,55,42,93,92,104,97,122,104,103,100,252,266,264,264,261,266,400,392,478,475,456,455]} 1. d4 {[%emt 0:00:03]} Nf6 {[%emt 0:00:11]} 2. Nf3 {[%emt 0:01:11]} e6 {[%emt 0:00:06]} 3. c4 {[%emt 0:00:05]} d5 {[%emt 0:02:09]} 4. g3 {[%emt 0:00:17]} Bb4+ {[%emt 0:00:18]} 5. Bd2 {[%emt 0:03:29]} Be7 {[%emt 0:02:45]} 6. Bg2 {[%emt 0:00:07]} O-O {[%emt 0:01:07]} 7. Qc2 {[%emt 0:00:06]} c6 {[%emt 0:01:01]} 8. O-O {[%emt 0:00:07]} Nbd7 {[%emt 0:00:36]} 9. Rc1 {[%emt 0:00:19] E11: Bogo-Indian.} Ne4 {[%emt 0:07:06]} 10. Be1 {[%emt 0:01:22]} b6 {[%emt 0:02:06]} 11. Nbd2 {[%emt 0:07:19] White has an edge.} Nxd2 {[%emt 0:01:24]} 12. Nxd2 {[%emt 0:00:56][%cal Bf3d2,Bd2c4,Bc4a5,Ba5b3][%mdl 32]} Bb7 $146 {[%emt 0:02:43]} (12... Nf6 13. e4 a5 14. e5 Nd7 15. cxd5 cxd5 16. Bf1 Ba6 17. Bxa6 Rxa6 18. Qd3 Ra8 {1-0 Cherniaev,A (2384)-Solberg,J (2190) Oslo op 2018 (4)}) 13. e4 {[%emt 0:01:34]} Rc8 {[%emt 0:17:38]} 14. Qa4 {[%emt 0:03:50]} a6 {[%emt 0:02:11]} 15. Qb3 {[%emt 0:02:32][%cal Re4d5]} dxc4 {[%emt 0:12:26]} (15... dxe4 $1 $11 16. Nxe4 c5) 16. Nxc4 $14 {[%emt 0:00:12][%cal Oe1a5]} c5 {[%emt 0:00:35]} 17. d5 {[%emt 0:01:55] White plays in the center} exd5 {[%emt 0:13:08]} 18. exd5 {[%emt 0:00:04][%csl Od5] [#] d6 is the strong threat. White has a strong passed pawn} Bf6 {[%emt 0:01:50]} 19. Rd1 {[%emt 0:06:29]} Rb8 {[%emt 0:05:28]} (19... b5 $11 {is superior.}) 20. Bd2 {[%emt 0:07:11] White is more active.} b5 {[%emt 0:01:12]} 21. Na5 $36 {[%emt 0:00:23][%mdl 2048] White has some pressure.} Qb6 {[%emt 0:05:45]} 22. Qa3 {[%emt 0:09:43]} Bd4 {[%emt 0:02:04]} 23. Nb3 {[%emt 0:04:24]} (23. Bf4 {with more complications.} Rbc8 24. Nxb7 Qxb7 25. d6) 23... Be5 {[%emt 0:11:44]} 24. Be3 $1 {[%emt 0:00:12][%cal Rb3c5]} Bd6 {[%emt 0:00:18]} ({Better is} 24... Qf6 $14 25. Nxc5 Nxc5 26. Qxc5 (26. Bxc5 $2 {perishes.} Bxb2 27. Bxf8 Rxf8 $19) 26... Bxb2) 25. Qa5 $16 {[%emt 0:03:30]} Qxa5 {[%emt 0:02:11]} 26. Nxa5 {[%emt 0:00:08]} Ne5 {[%emt 0:02:26]} 27. Rac1 {[%emt 0:01:42]} Nd7 {[%emt 0:01:15]} 28. Bh3 {[%emt 0:03:54]} Nf6 {[%emt 0:01:43] [#] Black cannot hold the game after this.} (28... f5 $16 {might work better.}) 29. Nxb7 $18 {[%emt 0:01:56]} Rxb7 {[%emt 0:00:05]} 30. Bxc5 {[%emt 0:00:02]} Bxc5 {[%emt 0:00:29]} 31. Rxc5 {[%emt 0:00:01]} Rd8 {[%emt 0:00:30]} (31... Nd7 $142 32. Rc6 h6) 32. d6 {[%emt 0:01:56][%cal Bd5d6,Bd6d7][%mdl 32]} g6 {[%emt 0:01:18]} 33. Rc8 {[%emt 0:00:40]} Rb8 {[%emt 0:00:15]} 34. d7 {[%emt 0:00:38] Weighted Error Value: White=0.08 (flawless) /Black=0.26 (precise)   Mistake:       	---       	Black=5      Inaccurate:     	White=3     	Black=3      OK:         	White=9     	Black=8      Best:        	White=2     	Black=1      Strong:       	White=1     	---} 1-0

[Event "44th Indian Team Championship 2025"]
[Site "Gujarat"]
[Date "2025.03.06"]
[Round "2.8"]
[White "Gajendra, Singh"]
[Black "Mitrabha, Guha"]
[Result "0-1"]
[Annotator "TA"]
[ECO "A49"]
[WhiteElo "1819"]
[BlackElo "2499"]
[PlyCount "90"]
[EventDate "2025.03.03"]
[EventCountry "IND"]
[SourceTitle "playchess.com"]
[Source "ChessBase"]
[SourceQuality "1"]
[TimeControl "5400+30"]

{[%evp 9,90,20,12,12,5,6,0,-7,-4,-16,-5,-6,0,0,12,-27,-16,-27,-22,-18,-8,-35,-17,-27,0,-87,-83,-78,-86,-127,-85,-106,-56,-84,-64,-70,-85,-169,-172,-237,-216,-303,-239,-375,-341,-428,-459,-460,-423,-459,-420,-418,-363,-392,-380,-341,-322,-384,-386,-380,-285,-473,-399,-381,-339,-336,-263,-246,-263,-256,-241,-275,-250,-309,-315,-472,-468,-556,-584,-909,-909,-1135,-1124]} 1. d4 {[%emt 0:03:31]} Nf6 {[%emt 0:00:09]} 2. Nf3 {[%emt 0:00:11]} c5 {[%emt 0:00:07]} 3. d5 {[%emt 0:00:13]} g6 {[%emt 0:00:17]} 4. g3 {[%emt 0:00:16]} d6 {[%emt 0:00:13]} 5. Bg2 {[%emt 0:01:02]} b5 {[%emt 0:00:10]} 6. a4 {[%emt 0:00:15] A49: 1 d4 Nf6 2 Nf3 g6 3 g3: Anti-King's Indian systems.} b4 {[%emt 0:00:06]} 7. c4 {[%emt 0:00:20]} bxc3 {[%emt 0:00:09]} 8. Nxc3 {[%emt 0:02:16][%cal Of3e5] The position is equal.} Bg7 {[%emt 0:00:08]} 9. O-O {[%emt 0:00:21]} O-O {[%emt 0:00:04]} 10. Re1 {[%emt 0:03:09]} Nbd7 $146 {[%emt 0:00:50]} (10... Na6 11. Nd2 Nb4 12. Nc4 Ba6 13. Nb5 Nd7 14. Ra3 Rb8 15. Bg5 h6 16. Bd2 Nb6 17. Nxb6 Qxb6 {0-1 Shyam,N (2442)-Vitiugov,N (2726) Titled Tuesday intern op 15th Feb Early blitz 2022 (6)}) 11. h3 {[%emt 0:01:50]} Rb8 {[%emt 0:00:53]} 12. Ra3 {[%emt 0:05:01]} Ba6 {[%emt 0:01:08]} 13. e4 {[%emt 0:11:30][%cal Oc3b5]} Ne8 {[%emt 0:01:12]} 14. Qc2 {[%emt 0:08:34]} Qb6 {[%emt 0:02:20]} 15. h4 {[%emt 0:07:08]} Nc7 {[%emt 0:02:38]} 16. Bh3 {[%emt 0:06:08]} Bc8 {[%emt 0:06:34]} 17. Nd2 {[%emt 0:03:47]} (17. h5 $11 {keeps the balance.}) 17... Ne5 $17 {[%emt 0:00:28]} 18. Bf1 {[%emt 0:10:55]} (18. Rb3 $2 Nf3+ 19. Kh1 Nxe1 $19) 18... Ba6 {[%emt 0:01:15]} 19. Nd1 {[%emt 0:07:41]} Bxf1 {[%emt 0:00:49]} 20. Rxf1 {[%emt 0:00:19]} Na6 {[%emt 0:00:19]} (20... e6 $17 21. Ne3 exd5 22. exd5 Qa6) 21. Ne3 $15 {[%emt 0:02:11]} Nb4 {[%emt 0:00:06]} 22. Qd1 {[%emt 0:04:15]} Qa6 $36 {[%emt 0:00:30][%mdl 2048] Black has strong initiative. Black is more active. White is on the road to losing.} 23. f4 {[%emt 0:00:41]} (23. h5 $17) 23... Ned3 $19 {[%emt 0:00:26][%cal Og7d4]} 24. Nec4 {[%emt 0:00:57]} (24. Ndc4 Bd4 25. b3) 24... e6 {[%emt 0:01:52]} 25. dxe6 {[%emt 0:05:02]} (25. Qf3 {was the only chance.} Bd4+ 26. Kh2 exd5 27. exd5 Nxc1 28. Rxc1) 25... fxe6 {[%emt 0:00:03]} 26. Rf3 {[%emt 0:01:41]} (26. e5 dxe5 27. Nxe5) 26... Bd4+ {[%emt 0:01:04]} (26... d5 27. Ne3 $19) 27. Kg2 {[%emt 0:00:25]} d5 {[%emt 0:00:57]} 28. exd5 {[%emt 0:09:49]} exd5 {[%emt 0:00:01]} 29. Ne5 {[%emt 0:00:06]} Bxe5 {[%emt 0:02:21]} (29... Nxb2 $2 30. Bxb2 Bxb2 31. Rae3 $19) 30. fxe5 {[%emt 0:00:13]} Nxe5 {[%emt 0:00:50] [#] Excellent horsemanship.} 31. Rxf8+ {[%emt 0:01:39]} Rxf8 {[%emt 0:00:03]} 32. Nf3 {[%emt 0:01:42]} Ned3 {[%emt 0:01:16]} 33. Bh6 {[%emt 0:01:39]} Re8 {[%emt 0:00:23]} (33... Nxb2 34. Qe1 N2d3 35. Qe7 $11) 34. Qf1 {[%emt 0:00:27]} Qc4 {[%emt 0:03:03]} (34... Nxb2 35. Qxa6 Nxa6 36. Rb3 $11) 35. Rc3 $2 {[%emt 0:01:23] [#]} (35. Kh2) 35... Qe4 {[%emt 0:00:14]} 36. Kh2 {[%emt 0:01:06]} Qe2+ {[%emt 0:01:18] White is weak on the light squares} (36... Nxb2 37. Rxc5 Qe7 (37... Nxa4 38. Rc7 $16) 38. Rc1 Qe2+ (38... Nxa4 $2 39. Re1 $18) 39. Qxe2 Rxe2+ 40. Kh3 $14) 37. Kg1 {[%emt 0:00:34]} Qxf1+ {[%emt 0:01:20]} (37... Nxb2 38. Qxe2 Rxe2 39. Rxc5 $16) 38. Kxf1 {[%emt 0:00:03]} Kf7 {[%emt 0:02:15][%cal Oa7a5]} (38... Nxb2 39. Rxc5 Nc4 40. Rc7 $11) 39. Bd2 {[%emt 0:00:44]} a5 {[%emt 0:00:44][%cal Od5d4]} (39... Nxb2 40. Ng5+ (40. Rxc5 N4d3 $18) 40... Kg8 41. Rxc5 $16) 40. Ng5+ {[%emt 0:00:39]} Kg7 {[%emt 0:00:31][%cal Od5d4]} 41. Ra3 {[%emt 0:00:32]} c4 {[%emt 0:00:54]} ({Stronger than} 41... Nxb2 42. Bc3+ d4 43. Bxb2 $11) 42. Bc3+ {[%emt 0:00:38]} (42. Nf3 {keeps fighting.}) 42... Kg8 {[%emt 0:00:26] ...Nc2 is the strong threat. Black is clearly winning.} 43. Nf3 {[%emt 0:00:26]} Nc2 {[%emt 0:00:00] Against Nd4} 44. Ra2 {[%emt 0:00:27]} Rf8 {[%emt 0:00:00]} 45. Kg2 {[%emt 0:00:06]} Ne3+ {[%emt 0:00:03] Weighted Error Value: White=0.56/Black=0.20 (precise)   Mistake:       	White=7     	Black=1      Inaccurate:     	White=4     	Black=2      OK:         	White=8     	Black=17     Best:        	---       	Black=3} 0-1

[Event "44th Indian Team Championship 2025"]
[Site "Gujarat"]
[Date "2025.03.06"]
[Round "2.9"]
[White "Lakshmi Narayanan M V"]
[Black "Harikrishnan.A.Ra"]
[Result "0-1"]
[Annotator "TA"]
[ECO "A50"]
[WhiteElo "2097"]
[BlackElo "2468"]
[PlyCount "78"]
[EventDate "2025.03.03"]
[EventCountry "IND"]
[SourceTitle "playchess.com"]
[Source "ChessBase"]
[SourceQuality "1"]
[TimeControl "5400+30"]

{[%evp 13,78,12,45,50,42,18,87,79,88,-10,34,0,0,0,0,0,0,0,0,-1,0,0,0,0,0,0,0,4,4,0,0,5,11,0,0,0,0,0,0,0,0,0,0,0,0,0,0,0,0,-4,0,0,0,0,0,0,0,0,0,-65,-61,-2372,-2291,-2021,-1921,-1606,-1452]} 1. d4 {[%emt 0:05:15][%cal Bd2d4,Bd4d5][%mdl 32]} Nf6 {[%emt 0:00:08]} 2. c4 {[%emt 0:00:21]} Nc6 {[%emt 0:00:06]} 3. Nc3 {[%emt 0:01:34]} e5 {[%emt 0:00:05]} 4. d5 {[%emt 0:01:04]} Ne7 {[%emt 0:00:10]} 5. e4 {[%emt 0:01:09]} Ng6 {[%emt 0:00:24]} 6. Be3 {[%emt 0:01:30]} Bb4 {[%emt 0:00:27]} 7. f3 {[%emt 0:01:14]} O-O {[%emt 0:01:19]} 8. Nge2 {[%emt 0:00:40] A50: Queen's Fianchetto Defence (1 d4 Nf6 2 c4 b6).} d6 {[%emt 0:02:01]} 9. Qd2 {[%emt 0:06:09]} a6 $146 {[%emt 0:01:37]} (9... c6 $11) ({Predecessor:} 9... Nd7 10. O-O-O Bc5 11. g3 Bxe3 12. Qxe3 a6 13. Kb1 Rb8 14. Nc1 f5 15. exf5 Rxf5 {1-0 Karpov,A (2692)-Llobel Cortell,E (2388) Manises exh m1 10' blitz 2001 (1.1)}) 10. a3 $16 {[%emt 0:01:14] White is better.} Bc5 {[%emt 0:00:30]} 11. g3 {[%emt 0:04:49]} (11. Bxc5 $16 dxc5 12. h4) 11... Ne8 {[%emt 0:07:01]} 12. Bg2 {[%emt 0:02:22]} Bxe3 {[%emt 0:02:57]} 13. Qxe3 {[%emt 0:00:39]} f5 {[%emt 0:00:06]} 14. exf5 {[%emt 0:02:32]} Bxf5 {[%emt 0:00:12]} 15. O-O {[%emt 0:00:47]} Nf6 {[%emt 0:01:29]} 16. h3 {[%emt 0:03:19] [#]} b5 $1 {[%emt 0:13:09]} 17. cxb5 {[%emt 0:04:33]} axb5 {[%emt 0:02:02]} 18. f4 {[%emt 0:01:12]} b4 {[%emt 0:23:22]} 19. axb4 {[%emt 0:03:08] And now Rxa8 would win.} Rxa1 {[%emt 0:00:49]} 20. Rxa1 {[%emt 0:00:30]} exf4 {[%emt 0:01:35]} 21. Nxf4 {[%emt 0:01:22]} Nxf4 {[%emt 0:01:07]} 22. Qxf4 {[%emt 0:01:01]} Nd7 {[%emt 0:00:13][%cal Of5h3]} 23. Qd2 {[%emt 0:04:45]} Ne5 {[%emt 0:04:12][%cal Of5h3]} 24. Rf1 {[%emt 0:06:15]} Bd7 {[%emt 0:01:15]} 25. Rf4 {[%emt 0:02:36]} Rxf4 {[%emt 0:02:22]} 26. Qxf4 {[%emt 0:01:44]} Qb8 {[%emt 0:01:20]} 27. Bf1 {[%emt 0:08:13]} h6 {[%emt 0:03:13]} 28. b5 {[%emt 0:01:39]} Qa7+ {[%emt 0:01:11]} 29. Kg2 {[%emt 0:02:27]} Qa1 {[%emt 0:00:57]} 30. Qf2 {[%emt 0:02:23]} Qc1 {[%emt 0:00:23]} 31. Kh2 {[%emt 0:03:38]} Be8 {[%emt 0:04:44]} 32. Na2 {[%emt 0:04:15]} Qa1 {[%emt 0:04:48]} 33. Nb4 {[%emt 0:01:24]} Bxb5 {[%emt 0:15:11]} 34. Bxb5 {[%emt 0:02:01]} Qa5 {[%emt 0:00:03][%csl LRb4,LRb5]} 35. Nc6 {[%emt 0:07:29]} Qxb5 {[%emt 0:00:05]} 36. Ne7+ {[%emt 0:01:55]} ({Better is} 36. Nxe5 $11 dxe5 37. d6) 36... Kh7 $15 {[%emt 0:00:10]} 37. Qf8 $2 {[%emt 0:08:08][%mdl 8192] [#]} (37. Qc2+ $15 g6 38. g4) 37... Qe2+ $1 $19 {[%emt 0:01:42] Black is clearly winning.} (37... Qxb2+ 38. Kg1 Qc1+ 39. Kf2 Qc2+ 40. Kf1 Qd3+ 41. Kf2 Qd2+ 42. Kf1 Qd3+ 43. Kf2 Qc2+ 44. Kg1 Qd1+ 45. Kf2 Qc2+ $11) 38. Kh1 {[%emt 0:00:19]} Qe4+ {[%emt 0:00:04]} ({And not} 38... Qxb2 39. Qg8#) 39. Kg1 {[%emt 0:00:45] [#]} Nf3+ $1 {[%emt 0:00:24] Weighted Error Value: White=0.34/Black=0.07 (flawless)   Loses game:     	White=1     	---        Mistake:       	White=2     	Black=1      Inaccurate:     	White=1     	Black=1      OK:         	White=14    	Black=14     Best:        	White=1     	Black=2      Strong:       	---       	Black=1} 0-1

[Event "44th Indian Team Championship 2025"]
[Site "Gujarat"]
[Date "2025.03.06"]
[Round "2.10"]
[White "Raahul V S"]
[Black "Hiren K G"]
[Result "0-1"]
[Annotator "RC"]
[ECO "E51"]
[WhiteElo "2389"]
[BlackElo "1985"]
[PlyCount "70"]
[EventDate "2025.03.03"]
[EventCountry "IND"]
[SourceTitle "playchess.com"]
[Source "ChessBase"]
[SourceQuality "1"]
[TimeControl "5400+30"]

1. d4 {[%emt 0:02:01]} Nf6 {[%emt 0:02:18]} 2. c4 {[%emt 0:00:26]} e6 {[%emt 0:00:12]} 3. Nc3 {[%emt 0:00:05]} Bb4 {[%emt 0:00:04]} 4. e3 {[%emt 0:00:49]} O-O {[%emt 0:00:07]} 5. Bd2 {[%emt 0:00:38]} d5 {[%emt 0:01:59]} 6. Nf3 {[%emt 0:02:12]} b6 {[%emt 0:04:36]} 7. cxd5 {[%emt 0:01:13]} exd5 {[%emt 0:00:28]} 8. Bd3 {[%emt 0:00:11]} c5 {[%emt 0:05:50]} 9. Ne5 {[%emt 0:06:05]} Ba6 {[%emt 0:03:28]} 10. Bxa6 {[%emt 0:07:46]} Nxa6 {[%emt 0:00:07]} 11. Qa4 {[%emt 0:02:41]} Bxc3 {[%emt 0:16:31]} 12. Bxc3 {[%emt 0:00:43]} Nc7 {[%emt 0:00:27]} 13. dxc5 {[%emt 0:00:59]} bxc5 {[%emt 0:02:42]} 14. O-O {[%emt 0:01:50]} Ne4 {[%emt 0:07:59]} 15. Ba5 {[%emt 0:05:40]} Qd6 {[%emt 0:02:52]} 16. Nd3 {[%emt 0:00:47]} Ne6 {[%emt 0:07:07]} 17. Rfd1 {[%emt 0:00:58]} Rfc8 {[%emt 0:13:07]} 18. f3 {[%emt 0:11:56]} Nf6 {[%emt 0:00:29]} 19. Bc3 {[%emt 0:00:39]} d4 {[%emt 0:06:18]} 20. Ne1 {[%emt 0:02:43]} Nd5 {[%emt 0:05:04]} 21. exd4 {[%emt 0:00:30]} Ne3 {[%emt 0:00:15]} 22. Rd2 {[%emt 0:03:47]} cxd4 {[%emt 0:01:18]} 23. Bb4 {[%emt 0:02:46]} Qd5 {[%emt 0:02:36]} 24. Nd3 {[%emt 0:01:59]} a5 {[%emt 0:00:52]} 25. Ba3 {[%emt 0:00:13]} Rc4 {[%emt 0:00:26]} 26. Qb3 {[%emt 0:00:30]} a4 {[%emt 0:00:41]} 27. Qb6 {[%emt 0:00:19]} Rc6 {[%emt 0:00:14]} 28. Qb4 {[%emt 0:01:59]} Nc2 {[%emt 0:00:19]} 29. Rxc2 {[%emt 0:00:58]} Rxc2 {[%emt 0:00:15]} 30. Re1 {[%emt 0:01:57]} Qg5 {[%emt 0:02:48]} 31. Nf2 {[%emt 0:01:02]} Rc1 {[%emt 0:02:34]} 32. g3 {[%emt 0:00:33]} Rac8 {[%emt 0:01:53]} 33. Nd3 {[%emt 0:02:02]} Qe3+ {[%emt 0:00:23]} 34. Kg2 {[%emt 0:00:06]} R8c2+ {[%emt 0:00:24]} 35. Kh3 {[%emt 0:00:15]} Qh6+ {[%emt 0:00:11]} 0-1

[Event "44th Indian Team Championship 2025"]
[Site "Gujarat"]
[Date "2025.03.06"]
[Round "2.11"]
[White "Dinesh Rajan M"]
[Black "Harshavardhan G B"]
[Result "0-1"]
[Annotator "TA"]
[ECO "C56"]
[WhiteElo "2157"]
[BlackElo "2417"]
[PlyCount "97"]
[EventDate "2025.03.03"]
[EventCountry "IND"]
[SourceTitle "playchess.com"]
[Source "ChessBase"]
[SourceQuality "1"]
[TimeControl "5400+30"]

{[%evp 9,97,26,19,0,0,0,37,37,36,31,37,28,26,-50,-11,-18,0,-68,-58,-75,-62,-68,-60,-60,-16,-21,-4,-11,0,0,0,0,0,0,0,0,0,0,0,-111,-143,-169,-166,-168,-170,-142,-39,-55,-39,-47,-48,-121,-119,-121,-114,-121,-122,-136,-143,-122,-121,-121,-113,-350,-400,-387,-390,-1463,-1462,-1229,-1090,-1191,-444,-2092,-1858,-4602,-11970,-29970,-29973,-29968,-29969,-29966,-4622,-29984,-29985,-29985,-29986,-29986,-29987,-29987]} 1. e4 {[%emt 0:04:08]} e5 {[%emt 0:00:38]} 2. Nf3 {[%emt 0:00:10]} Nc6 {[%emt 0:00:30]} 3. Bc4 {[%emt 0:00:08]} d6 {[%emt 0:00:24]} 4. d4 {[%emt 0:00:49]} Nf6 {[%emt 0:00:10]} 5. Nc3 {[%emt 0:08:14]} Bg4 {[%emt 0:00:28]} 6. d5 {[%emt 0:04:33] C56: Two Knights: 4 d4 exd4 5 0-0 Nxe4.} Nd4 {[%emt 0:00:13]} 7. Be3 {[%emt 0:00:38]} a6 {[%emt 0:00:41]} 8. Bxd4 {[%emt 0:09:10] White is slightly better.} exd4 {[%emt 0:00:16]} 9. Qxd4 {[%emt 0:00:05]} Bxf3 {[%emt 0:00:14]} 10. gxf3 {[%emt 0:00:01]} g6 {[%emt 0:00:14]} 11. f4 $146 {[%emt 0:18:34]} ({Better is} 11. Qe3 $11) (11. Be2 Bg7 12. Qe3 O-O 13. h4 h5 14. O-O-O Re8 15. Kb1 b5 16. Qd2 Nd7 17. Qg5 {0-1 Babula,V (2345)-Shyam,S (2493) Piestany Slovakia op-A 2024 (3)}) 11... Bg7 {[%emt 0:01:14][%mdl 1024] Black has compensation.} 12. Be2 {[%emt 0:05:40]} O-O {[%emt 0:03:52] Black sacrificed a pawn} 13. Kf1 {[%emt 0:05:49]} (13. Qe3 $11) 13... Re8 {[%emt 0:03:36][%cal Of6e4]} 14. Qd3 {[%emt 0:05:05]} Nd7 {[%emt 0:08:54][%cal Bf6d7,Bd7c5,Bc5e4][%mdl 32]} 15. Qf3 {[%emt 0:04:03]} Nc5 {[%emt 0:02:32]} 16. Bd3 {[%emt 0:00:05]} Qe7 {[%emt 0:01:28]} 17. Kg2 {[%emt 0:06:07]} Bxc3 {[%emt 0:03:02]} 18. bxc3 {[%emt 0:02:06]} Nxe4 {[%emt 0:00:16]} 19. Rhe1 {[%emt 0:00:22]} f5 {[%emt 0:00:12]} 20. Rab1 $1 {[%emt 0:00:15]} Qf7 {[%emt 0:04:00]} 21. Bxe4 {[%emt 0:04:12]} (21. Rxb7 $2 {too greedy.} Nd2 22. Qd1 (22. Rxe8+ $2 Rxe8 23. Qd1 Qxd5+ 24. f3 Qxb7 $19) 22... Qxd5+ 23. f3 Rxe1 (23... Qxb7 $2 24. Qxd2 Qc6 25. Rb1 $19) 24. Qxd2 Re7 $19) 21... fxe4 {[%emt 0:00:12]} 22. Rxe4 {[%emt 0:00:06]} Rxe4 {[%emt 0:00:10]} 23. Qxe4 $11 {[%emt 0:00:02][%mdl 4096] Endgame KQR-KQR. White is a pawn up.} Re8 {[%emt 0:00:12]} 24. Qd3 {[%emt 0:06:03]} (24. Qf3 $11 {keeps the balance.}) 24... Qxf4 $17 {[%emt 0:05:54]} 25. Rxb7 {[%emt 0:08:41]} Re5 {[%emt 0:02:16]} 26. Rb8+ {[%emt 0:03:34] [#]} Kf7 $1 {[%emt 0:01:38]} 27. Rb4 {[%emt 0:00:50]} Qg5+ {[%emt 0:01:20]} (27... Rg5+ $17 28. Kf1 Qxh2) 28. Qg3 $15 {[%emt 0:00:37]} Qxg3+ {[%emt 0:01:00]} 29. hxg3 {[%emt 0:00:06]} Rxd5 {[%emt 0:00:08] KR-KR} 30. Kf3 {[%emt 0:02:05] [#]} (30. Rc4 $15) 30... Rc5 $1 $17 {[%emt 0:01:24]} 31. c4 {[%emt 0:00:59]} a5 {[%emt 0:02:56]} 32. Ra4 {[%emt 0:00:46]} h5 {[%emt 0:00:20]} 33. Ke4 {[%emt 0:00:24]} g5 {[%emt 0:00:24]} 34. f4 {[%emt 0:01:13]} Kf6 {[%emt 0:00:15]} 35. fxg5+ {[%emt 0:00:22]} Kxg5 {[%emt 0:00:11]} 36. Kd4 $2 {[%emt 0:00:03] White does not recover from this.} (36. Kf3 $17) 36... Kg4 $19 {[%emt 0:00:44]} 37. Ra3 {[%emt 0:00:01]} Rf5 {[%emt 0:00:14]} 38. Rb3 $2 {[%emt 0:00:27]} (38. c5 Rxc5 (38... dxc5+ $2 39. Ke4 $19) 39. Ke4) 38... c5+ {[%emt 0:01:06]} 39. Ke4 {[%emt 0:00:15]} Re5+ {[%emt 0:00:06]} 40. Kd3 {[%emt 0:00:21]} Kxg3 {[%emt 0:00:08]} 41. Rb6 {[%emt 0:03:16]} (41. Rb7 $142 Rg5 (41... h4 $2 42. Rg7+ Kf3 43. Kc3 $19) 42. Re7) 41... h4 {[%emt 0:03:08] Threatens to win with ...h3.} 42. Rxd6 {[%emt 0:00:08]} h3 {[%emt 0:00:12] ( -> ...h2)} 43. Rh6 {[%emt 0:00:22]} h2 {[%emt 0:00:22]} 44. Kc3 {[%emt 0:00:48]} Re3+ {[%emt 0:00:20]} 45. Kb2 {[%emt 0:00:32]} Kg2 {[%emt 0:00:08]} (45... a4 $142 46. c3 Re4 47. Ka3 Rxc4 48. Rh7 Rh4 (48... Rxc3+ $2 49. Kxa4 Rc4+ 50. Kb5 $19) 49. Rxh4 Kxh4 50. Kxa4 h1=Q (50... h1=B 51. Kb5 $11) 51. Kb5 Qe1 52. Kc4 Qa1 53. Kxc5 Qxc3+ 54. Kd5 Qa5+ 55. Kd6 Qxa2 56. Kc6 Qc4+ 57. Kb7 Qb5+ 58. Kc8 Kg4 59. Kc7 Kf5 60. Kd6 Kf6 61. Kc7 Ke6 62. Kc8 Kd6 63. Kd8 Qd7#) 46. c3 {[%emt 0:00:28]} Rh3 {[%emt 0:01:00] Black mates.} 47. Rg6+ {[%emt 0:00:03]} Kf3 {[%emt 0:00:34]} 48. Rf6+ {[%emt 0:01:10]} Ke4 {[%emt 0:00:06]} 49. Re6+ {[%emt 0:00:32] Weighted Error Value: White=0.87/Black=0.23 (precise)   Loses game:     	White=1     	---        Mistake:       	White=5     	Black=1      Inaccurate:     	White=1     	Black=3      OK:         	White=11    	Black=12     Best:        	White=5     	Black=5      Strong:       	White=1     	Black=2} 0-1